fUST/lending_fUST_20250417
["ID","MTS","AMOUNT","RATE_DAILY","PERIOD"]
[358200179,1744830651865,-500.0,0.00024931,2]
[358200181,1744830651875,-858.67,0.00024931,2]
[358200183,1744830651885,-500.0,0.00024931,2]
[358200185,1744830651894,-500.0,0.00024931,2]
[358200187,1744830651904,-500.0,0.00024931,2]
[358200189,1744830651913,-500.0,0.00024931,2]
[358200191,1744830651923,-500.0,0.00024931,2]
[358200193,1744830651933,-528.89,0.00024931,2]
[358200195,1744830651943,-2970.4,0.00024931,2]
[358200197,1744830651953,-500.0,0.00024931,2]
[358200199,1744830651963,-500.0,0.00024931,2]
[358200201,1744830651972,-811.92,0.00024931,2]
[358200203,1744830651982,-542.61,0.00024931,2]
[358200205,1744830651993,-944.97,0.00024931,2]
[358200207,1744830652002,-500.0,0.00024931,2]
[358200209,1744830652012,-500.0,0.00024931,2]
[358200212,1744830652022,-1431.92,0.00024931,2]
[358200214,1744830652032,-1502.17,0.00024931,2]
[358200216,1744830652041,-500.0,0.00024931,2]
[358200218,1744830652050,-500.0,0.00024931,2]
[358200220,1744830652060,-500.0,0.00024931,2]
[358200222,1744830652070,-500.0,0.00024931,2]
[358200224,1744830652079,-1087.07,0.00024931,2]
[358200226,1744830652088,-727.07,0.00024931,2]
[358200228,1744830652098,-1464.53,0.00024931,2]
[358200230,1744830652108,-754.93,0.00024931,2]
[358200232,1744830652118,-500.0,0.00024931,2]
[358200234,1744830652128,-500.0,0.00024931,2]
[358200236,1744830652138,-1446.44,0.00024931,2]
[358200238,1744830652147,-500.0,0.00024931,2]
[358200240,1744830652157,-648.79,0.00024931,2]
[358200242,1744830652166,-500.0,0.00024931,2]
[358200243,1744830652175,-500.0,0.00024931,2]
[358200244,1744830652185,-500.0,0.00024931,2]
[358200245,1744830652194,-1000.0,0.00024931,2]
[358200246,1744830652204,-977.87,0.00024931,2]
[358200247,1744830652214,-500.0,0.00024931,2]
[358200248,1744830652224,-500.0,0.00024931,2]
[358200249,1744830652233,-789.19,0.00024931,2]
[358200250,1744830652243,-500.0,0.00024931,2]
[358200252,1744830652253,-1462.43,0.00024931,2]
[358200253,1744830652263,-627.68,0.00024931,2]
[358200254,1744830652273,-746.58,0.00024931,2]
[358200255,1744830652282,-607.39,0.00024931,2]
[358200256,1744830652292,-500.0,0.00024931,2]
[358200258,1744830652303,-500.0,0.00024931,2]
[358200260,1744830652313,-205.35507302,0.00024931,2]
[358200262,1744830652323,-500.0,0.00024931,2]
[358200264,1744830652334,-2424.36,0.00024931,2]
[358200266,1744830652345,-500.0,0.00024931,2]
[358200268,1744830652356,-500.0,0.00024931,2]
[358200270,1744830652367,-500.0,0.00024931,2]
[358200272,1744830652377,-297.06042837,0.00024931,2]
[358200273,1744830652387,-500.0,0.00024931,2]
[358200274,1744830652397,-500.0,0.00024931,2]
[358200275,1744830652407,-500.0,0.00024931,2]
[358200276,1744830652418,-2179.54,0.00024931,2]
[358200277,1744830652428,-500.0,0.00024931,2]
[358200278,1744830652439,-500.0,0.00024931,2]
[358200279,1744830652449,-2511.35,0.00024931,2]
[358200280,1744830652459,-500.0,0.00024931,2]
[358200281,1744830652470,-500.0,0.00024931,2]
[358200282,1744830652482,-1847.4,0.00024931,2]
[358200283,1744830652491,-500.0,0.00024931,2]
[358200284,1744830652501,-826.74,0.00024931,2]
[358200285,1744830652512,-1000.0,0.00024931,2]
[358200286,1744830652522,-500.0,0.00024931,2]
[358200287,1744830652533,-2209.11,0.00024931,2]
[358200288,1744830652542,-638.04172579,0.00024931,2]
[358200289,1744830652552,-500.0,0.00024931,2]
[358200290,1744830652562,-500.82,0.00024931,2]
[358200291,1744830652572,-500.0,0.00024931,2]
[358200292,1744830652582,-500.0,0.00024931,2]
[358200293,1744830652592,-500.0,0.00024931,2]
[358200294,1744830652603,-500.0,0.00024931,2]
[358200295,1744830652616,-500.0,0.00024931,2]
[358200296,1744830652627,-500.0,0.00024931,2]
[358200297,1744830652637,-500.0,0.00024931,2]
[358200298,1744830652876,-826.5,0.00024931,2]
[358200299,1744830652902,-500.0,0.00024931,2]
[358200300,1744830652913,-1099.78,0.00024931,2]
[358200301,1744830652923,-500.0,0.00024931,2]
[358200302,1744830652933,-1185.58,0.00024931,2]
[358200303,1744830652943,-1656.62,0.00024931,2]
[358200304,1744830652952,-2316.39,0.00024931,2]
[358200305,1744830652962,-536.36,0.00024931,2]
[358200306,1744830652972,-931.59,0.00024931,2]
[358200307,1744830652982,-500.0,0.00024931,2]
[358200308,1744830652992,-500.0,0.00024931,2]
[358200309,1744830653002,-500.0,0.00024931,2]
[358200310,1744830653012,-500.0,0.00024931,2]
[358200311,1744830653022,-500.0,0.00024931,2]
[358200312,1744830653031,-500.0,0.00024931,2]
[358200313,1744830653041,-500.0,0.00024931,2]
[358200314,1744830653051,-500.0,0.00024931,2]
[358200315,1744830653060,-500.0,0.00024931,2]
[358200316,1744830653070,-785.58,0.00024931,2]
[358200317,1744830653079,-1289.69,0.00024931,2]
[358200319,1744830653088,-500.0,0.00024931,2]
[358200321,1744830653098,-553.9,0.00024931,2]
[358200323,1744830653107,-500.0,0.00024931,2]
[358200325,1744830653118,-500.0,0.00024931,2]
[358200327,1744830653128,-500.0,0.00024931,2]
[358200329,1744830653138,-1701.68,0.00024931,2]
[358200331,1744830653148,-823.34,0.00024931,2]
[358200334,1744830653157,-644.82100315,0.00024931,2]
[358200336,1744830653167,-500.0,0.00024931,2]
[358200338,1744830653176,-500.0,0.00024931,2]
[358200340,1744830653185,-500.0,0.00024931,2]
[358200342,1744830653194,-500.0,0.00024931,2]
[358200344,1744830653204,-500.0,0.00024931,2]
[358200346,1744830653213,-500.0,0.00024931,2]
[358200348,1744830653223,-517.55,0.00024931,2]
[358200350,1744830653232,-500.0,0.00024931,2]
[358200352,1744830653241,-500.0,0.00024931,2]
[358200354,1744830653251,-500.0,0.00024931,2]
[358200356,1744830653260,-1118.91,0.00024931,2]
[358200358,1744830653270,-887.07,0.00024931,2]
[358200360,1744830653279,-807.86,0.00024931,2]
[358200362,1744830653288,-500.0,0.00024931,2]
[358200364,1744830653297,-547.92,0.00024931,2]
[358200366,1744830653306,-500.0,0.00024931,2]
[358200368,1744830653316,-200.59463697,0.00024931,2]
[358200370,1744830653325,-691.9,0.00024931,2]
[358200372,1744830653335,-500.0,0.00024931,2]
[358200374,1744830653344,-1403.6,0.00024931,2]
[358200376,1744830653355,-1756.94,0.00024931,2]
[358200378,1744830653366,-500.0,0.00024931,2]
[358200380,1744830653376,-545.3,0.00024931,2]
[358200382,1744830653385,-500.0,0.00024931,2]
[358200384,1744830653394,-1390.22,0.00024931,2]
[358200386,1744830653404,-500.0,0.00024931,2]
[358200389,1744830653414,-587.03597788,0.00024931,2]
[358200391,1744830653423,-500.0,0.00024931,2]
[358200393,1744830653433,-500.0,0.00024931,2]
[358200395,1744830653442,-562.33,0.00024931,2]
[358200397,1744830653452,-616.23,0.00024931,2]
[358200399,1744830653461,-500.0,0.00024931,2]
[358200402,1744830653471,-500.0,0.00024931,2]
[358200404,1744830653480,-500.0,0.00024931,2]
[358200406,1744830653490,-500.0,0.00024931,2]
[358200408,1744830653499,-500.0,0.00024931,2]
[358200410,1744830653508,-830.77,0.00024931,2]
[358200412,1744830653518,-1076.71,0.00024931,2]
[358200414,1744830653528,-585.35,0.00024931,2]
[358200416,1744830653537,-500.0,0.00024931,2]
[358200418,1744830653547,-500.0,0.00024931,2]
[358200420,1744830653555,-891.5,0.00024931,2]
[358200422,1744830653565,-2053.16,0.00024931,2]
[358200424,1744830653574,-528.94,0.00024931,2]
[358200426,1744830653584,-500.0,0.00024931,2]
[358200428,1744830653594,-500.0,0.00024931,2]
[358200430,1744830653604,-500.0,0.00024931,2]
[358200432,1744830653614,-776.31,0.00024931,2]
[358200434,1744830653628,-2648.87,0.00024931,2]
[358200436,1744830653637,-1274.6,0.00024931,2]
[358200438,1744830653647,-1246.43,0.00024931,2]
[358200440,1744830653656,-950.69,0.00024931,2]
[358200442,1744830653666,-555.54,0.00024931,2]
[358200444,1744830653676,-2119.99,0.00024931,2]
[358200446,1744830653686,-500.0,0.00024931,2]
[358200448,1744830653696,-500.0,0.00024931,2]
[358200450,1744830653706,-500.0,0.00024931,2]
[358200452,1744830653715,-682.9,0.00024931,2]
[358200454,1744830653725,-500.0,0.00024931,2]
[358200456,1744830653735,-599.11,0.00024931,2]
[358200458,1744830653744,-500.0,0.00024931,2]
[358200460,1744830653754,-2026.28,0.00024931,2]
[358200462,1744830653763,-500.0,0.00024931,2]
[358200464,1744830653772,-500.0,0.00024931,2]
[358200466,1744830653782,-500.0,0.00024931,2]
[358200468,1744830653791,-500.0,0.00024931,2]
[358200470,1744830653801,-500.0,0.00024931,2]
[358200473,1744830653811,-590.87,0.00024931,2]
[358200474,1744830653820,-500.0,0.00024931,2]
[358200477,1744830653830,-576.9026242,0.00024931,2]
[358200479,1744830653840,-500.0,0.00024931,2]
[358200481,1744830653849,-500.0,0.00024931,2]
[358200483,1744830653859,-500.0,0.00024931,2]
[358200485,1744830653871,-500.0,0.00024931,2]
[358200487,1744830653881,-613.87,0.00024931,2]
[358200489,1744830653890,-500.0,0.00024931,2]
[358200491,1744830653899,-500.0,0.00024931,2]
[358200493,1744830653909,-500.0,0.00024931,2]
[358200495,1744830653919,-1694.15,0.00024931,2]
[358200497,1744830653929,-1850.91,0.00024931,2]
[358200499,1744830653938,-500.0,0.00024931,2]
[358200501,1744830653948,-1398.35,0.00024931,2]
[358200503,1744830653957,-500.0,0.00024931,2]
[358200505,1744830653967,-500.0,0.00024931,2]
[358200507,1744830653976,-500.0,0.00024931,2]
[358200509,1744830653985,-500.0,0.00024931,2]
[358200511,1744830653995,-500.0,0.00024931,2]
[358200513,1744830654005,-500.0,0.00024931,2]
[358200515,1744830654015,-500.0,0.00024931,2]
[358200517,1744830654025,-500.0,0.00024931,2]
[358200519,1744830654034,-1381.34,0.00024931,2]
[358200521,1744830654044,-359.92829819,0.00024931,2]
[358200523,1744830654054,-500.0,0.00024931,2]
[358200525,1744830654063,-593.55,0.00024931,2]
[358200527,1744830654072,-766.85,0.00024931,2]
[358200529,1744830654082,-520.68,0.00024931,2]
[358200531,1744830654091,-825.8,0.00024931,2]
[358200533,1744830654101,-500.0,0.00024931,2]
[358200535,1744830654110,-500.0,0.00024931,2]
[358200537,1744830654120,-500.0,0.00024931,2]
[358200539,1744830654129,-1477.34,0.00024931,2]
[358200541,1744830654138,-1283.3,0.00024931,2]
[358200543,1744830654148,-874.55,0.00024931,2]
[358200545,1744830654158,-500.0,0.00024931,2]
[358200547,1744830654167,-1473.39,0.00024931,2]
[358200549,1744830654177,-500.0,0.00024931,2]
[358200551,1744830654186,-21097.38,0.00024931,2]
[358200553,1744830654196,-500.0,0.00024931,2]
[358200555,1744830654205,-593.99,0.00024931,2]
[358200557,1744830654214,-500.0,0.00024931,2]
[358200558,1744830654224,-581.7,0.00024931,2]
[358200559,1744830654233,-500.0,0.00024931,2]
[358200561,1744830654243,-500.96831791,0.00024931,2]
[358200563,1744830654252,-1881.06,0.00024931,2]
[358200565,1744830654262,-1318.88,0.00024931,2]
[358200567,1744830654271,-500.0,0.00024931,2]
[358200569,1744830654281,-1214.44,0.00024931,2]
[358200571,1744830654290,-9224.15,0.00024931,2]
[358200573,1744830654300,-962.98,0.00024931,2]
[358200575,1744830654310,-500.0,0.00024931,2]
[358200577,1744830654319,-918.45,0.00024931,2]
[358200579,1744830654329,-500.0,0.00024931,2]
[358200581,1744830654339,-219.19,0.00024931,2]
[358200583,1744830654348,-6006.77,0.00024931,2]
[358200585,1744830654358,-693.34,0.00024931,2]
[358200587,1744830654368,-500.0,0.00024931,2]
[358200589,1744830654378,-1334.09,0.00024931,2]
[358200591,1744830654388,-500.0,0.00024931,2]
[358200593,1744830654398,-2218.62,0.00024931,2]
[358200595,1744830654407,-500.0,0.00024931,2]
[358200597,1744830654417,-500.0,0.00024931,2]
[358200599,1744830654426,-500.0,0.00024931,2]
[358200601,1744830654436,-2133.91,0.00024931,2]
[358200603,1744830654446,-1184.21,0.00024931,2]
[358200605,1744830654455,-500.0,0.00024931,2]
[358200607,1744830654465,-727.66,0.00024931,2]
[358200609,1744830654475,-500.0,0.00024931,2]
[358200611,1744830654484,-500.0,0.00024931,2]
[358200613,1744830654494,-1192.02,0.00024931,2]
[358200615,1744830654504,-500.0,0.00024931,2]
[358200617,1744830654514,-500.0,0.00024931,2]
[358200619,1744830654523,-500.0,0.00024931,2]
[358200621,1744830654533,-1027.22,0.00024931,2]
[358200623,1744830654543,-658.57,0.00024931,2]
[358200625,1744830654554,-506.64,0.00024931,2]
[358200627,1744830654563,-500.0,0.00024931,2]
[358200629,1744830654574,-500.0,0.00024931,2]
[358200631,1744830654583,-1019.76,0.00024931,2]
[358200633,1744830654593,-1574.93,0.00024931,2]
[358200635,1744830654603,-1433.12,0.00024931,2]
[358200637,1744830654618,-1981.3,0.00024931,2]
[358200639,1744830654632,-500.0,0.00024931,2]
[358200641,1744830654642,-500.0,0.00024931,2]
[358200643,1744830654652,-500.0,0.00024931,2]
[358200645,1744830654662,-787.9,0.00024931,2]
[358200648,1744830654672,-500.0,0.00024931,2]
[358200650,1744830654682,-582.44,0.00024931,2]
[358200652,1744830654692,-1702.04,0.00024931,2]
[358200654,1744830654701,-500.0,0.00024931,2]
[358200656,1744830654711,-915.89,0.00024931,2]
[358200658,1744830654719,-500.0,0.00024931,2]
[358200660,1744830654728,-500.0,0.00024931,2]
[358200662,1744830654737,-586.68,0.00024931,2]
[358200664,1744830654746,-500.0,0.00024931,2]
[358200666,1744830654756,-500.0,0.00024931,2]
[358200668,1744830654765,-621.52,0.00024931,2]
[358200670,1744830654775,-500.0,0.00024931,2]
[358200672,1744830654785,-1354.6,0.00024931,2]
[358200673,1744830654795,-500.0,0.00024931,2]
[358200674,1744830654804,-921.55,0.00024931,2]
[358200675,1744830654814,-749.17,0.00024931,2]
[358200676,1744830654824,-500.0,0.00024931,2]
[358200677,1744830654834,-500.0,0.00024931,2]
[358200678,1744830654842,-500.0,0.00024931,2]
[358200679,1744830654852,-500.0,0.00024931,2]
[358200680,1744830654862,-1317.4,0.00024931,2]
[358200681,1744830654873,-500.0,0.00024931,2]
[358200682,1744830654882,-1356.36,0.00024931,2]
[358200683,1744830654892,-500.0,0.00024931,2]
[358200684,1744830654902,-500.0,0.00024931,2]
[358200685,1744830654912,-567.93,0.00024931,2]
[358200687,1744830654921,-500.0,0.00024931,2]
[358200689,1744830654931,-500.0,0.00024931,2]
[358200691,1744830654940,-2020.49,0.00024931,2]
[358200693,1744830654950,-500.0,0.00024931,2]
[358200695,1744830654959,-500.0,0.00024931,2]
[358200697,1744830654969,-1340.96308246,0.00024931,2]
[358200700,1744830654989,-274.88691754,0.00024931,2]
[358200702,1744830654999,-825.53,0.00024931,2]
[358200704,1744830655008,-973.77,0.00024931,2]
[358200706,1744830655017,-4.92967807,0.00024931,2]
[358200773,1744830656463,-849.1,0.00024657,2]
[358200774,1744830656474,-764.57032193,0.00024931,2]
[358200775,1744830656483,-500.0,0.00024931,2]
[358200776,1744830656493,-2556.67,0.00024931,2]
[358200777,1744830656504,-2868.25,0.00024931,2]
[358200778,1744830656514,-500.0,0.00024931,2]
[358200779,1744830656524,-500.0,0.00024931,2]
[358200780,1744830656534,-500.0,0.00024931,2]
[358200781,1744830656543,-1848.61,0.00024931,2]
[358200783,1744830656554,-2220.84,0.00024931,2]
[358200784,1744830656563,-500.0,0.00024931,2]
[358200785,1744830656573,-369.90818786,0.00024931,2]
[358200786,1744830656589,-351.59094771,0.00024931,2]
[358200788,1744830916115,250.0,0.0001767,2]
[358200789,1744830945017,426.8410651,0.00017232,2]
[358200877,1744831831687,-250.0,0.00018044,2]
[358200878,1744831831697,-1000.0,0.00018048,2]
[358200879,1744831831707,-444.32299489,0.00018135,2]
[358200880,1744831831716,-260.53401874,0.00018135,2]
[358200881,1744831831726,-300.0,0.00018234,2]
[358200882,1744831831736,-3.72495504,0.00018234,2]
[358200890,1744831837981,-296.27504496,0.00018234,2]
[358200891,1744831837992,-500.0,0.00018234,2]
[358200892,1744831838002,-460.60511185,0.00018234,2]
[358200893,1744831838012,-467.52748106,0.000183,2]
[358200894,1744831838021,-335.53007672,0.000183,2]
[358200895,1744831838031,-500.0,0.000183,2]
[358200896,1744831838040,-500.0,0.000183,2]
[358200897,1744831838050,-407.61306653,0.000183,2]
[358200898,1744831838059,-500.0,0.000183,2]
[358200899,1744831838071,-500.0,0.000183,2]
[358200900,1744831838082,-500.0,0.000183,2]
[358200901,1744831838092,-500.0,0.000183,2]
[358200902,1744831838101,-558.37208153,0.000183,2]
[358200903,1744831838113,-500.0,0.000183,2]
[358200904,1744831838122,-500.0,0.000183,2]
[358200905,1744831838132,-500.0,0.000183,2]
[358200906,1744831838142,-325.42963925,0.000189,2]
[358200907,1744831838152,-444.32299483,0.00019796,2]
[358200908,1744831838162,-420.0,0.00019891,2]
[358200909,1744831838172,-159.1704455,0.00019905,2]
[358200910,1744831838182,-705.296956,0.00019976,2]
[358200911,1744831838192,-420.0,0.00019988,2]
[358200912,1744831838201,-337.0966198,0.00020296,2]
[358200913,1744831838211,-9460.0369173,0.00020353,2]
[358200914,1744831838221,-444.32299483,0.00021457,2]
[358200915,1744831838231,-587.0,0.00021911,2]
[358200916,1744831838240,-444.32299483,0.00023118,2]
[358200917,1744831838250,-152.52029656,0.00023161,5]
[358200918,1744831838259,-193.17539174,0.00023306,3]
[358200919,1744831838269,-1000.0,0.00023779,2]
[358200920,1744831838278,-1000.0,0.00023779,2]
[358200921,1744831838287,-1000.0,0.00023779,2]
[358200922,1744831838297,-1000.0,0.00023779,2]
[358200923,1744831838307,-1000.0,0.00023779,2]
[358200924,1744831838317,-267.82087873,0.0002398,2]
[358200925,1744831838326,-823.0,0.00024018,2]
[358200926,1744831838336,-2344.554,0.00024058,2]
[358200927,1744831838345,-153.798,0.00024058,2]
[358200928,1744831838358,-1373.99,0.00024657,2]
[358200929,1744831838367,-696.48,0.00024657,2]
[358200930,1744831838377,-500.0,0.00024657,2]
[358200931,1744831838387,-500.0,0.00024657,2]
[358200932,1744831838396,-500.0,0.00024657,2]
[358200933,1744831838406,-500.0,0.00024657,2]
[358200934,1744831838415,-1016.63,0.00024657,2]
[358200935,1744831838425,-796.78,0.00024657,2]
[358200936,1744831838434,-500.0,0.00024657,2]
[358200937,1744831838444,-500.0,0.00024657,2]
[358200938,1744831838454,-500.0,0.00024657,2]
[358200939,1744831838463,-500.0,0.00024657,2]
[358200940,1744831838473,-500.0,0.00024657,2]
[358200941,1744831838482,-1227.26,0.00024657,2]
[358200942,1744831838492,-500.0,0.00024657,2]
[358200943,1744831838503,-4987.00951023,0.00024657,2]
[358200944,1744831838515,-1462.27695507,0.00024657,2]
[358200945,1744831838537,-4688.1035347,0.00024657,2]
[358200946,1744831838546,-500.0,0.00024657,2]
[358200947,1744831838556,-500.0,0.00024657,2]
[358200948,1744831838565,-500.0,0.00024657,2]
[358200949,1744831838575,-1144.68,0.00024657,2]
[358200950,1744831838585,-587.78,0.00024657,2]
[358200951,1744831838594,-765.95,0.00024657,2]
[358200952,1744831838605,-740.3,0.00024657,2]
[358200953,1744831838615,-500.0,0.00024657,2]
[358200954,1744831838625,-547.84,0.00024657,2]
[358200955,1744831838634,-1199.47,0.00024657,2]
[358200956,1744831838644,-413.94417553,0.00024657,2]
[358200957,1744831838653,-603.83,0.00024657,2]
[358200958,1744831838663,-955.69,0.00024657,2]
[358200959,1744831838673,-515.19,0.00024657,2]
[358200960,1744831838682,-500.0,0.00024657,2]
[358200961,1744831838692,-625.49414915,0.00024657,2]
[358200962,1744831838702,-1515.87,0.00024657,2]
[358200963,1744831838711,-500.0,0.00024657,2]
[358200964,1744831838719,-1136.91,0.00024657,2]
[358200965,1744831838728,-2096.13,0.00024657,2]
[358200966,1744831838737,-500.0,0.00024657,2]
[358200967,1744831838747,-500.0,0.00024657,2]
[358200968,1744831838756,-500.0,0.00024657,2]
[358200969,1744831838766,-1122.23,0.00024657,2]
[358200970,1744831838775,-500.0,0.00024657,2]
[358200971,1744831838785,-500.0,0.00024657,2]
[358200972,1744831838795,-500.0,0.00024657,2]
[358200973,1744831838804,-500.0,0.00024657,2]
[358200974,1744831838813,-1163.16,0.00024657,2]
[358200975,1744831838823,-500.0,0.00024657,2]
[358200976,1744831838833,-500.0,0.00024657,2]
[358200977,1744831838842,-1142.02,0.00024657,2]
[358200978,1744831838851,-500.0,0.00024657,2]
[358200979,1744831838862,-500.0,0.00024657,2]
[358200980,1744831838871,-500.0,0.00024657,2]
[358200981,1744831838880,-500.0,0.00024657,2]
[358200982,1744831838890,-739.3,0.00024657,2]
[358200983,1744831838900,-526.62,0.00024657,2]
[358200984,1744831838909,-5692.44,0.00024657,2]
[358200985,1744831838919,-500.0,0.00024657,2]
[358200986,1744831838928,-982.6,0.00024657,2]
[358200987,1744831838938,-955.89,0.00024657,2]
[358200988,1744831838947,-500.0,0.00024657,2]
[358200989,1744831838957,-806.45,0.00024657,2]
[358200990,1744831838967,-500.0,0.00024657,2]
[358200991,1744831838977,-500.0,0.00024657,2]
[358200992,1744831838992,-500.0,0.00024657,2]
[358200993,1744831839002,-500.0,0.00024657,2]
[358200994,1744831839012,-299.54456456,0.00024657,2]
[358200995,1744831839022,-500.0,0.00024657,2]
[358200996,1744831839032,-821.18,0.00024657,2]
[358200997,1744831839041,-500.0,0.00024657,2]
[358200998,1744831839051,-680.81,0.00024657,2]
[358200999,1744831839060,-1839.03,0.00024657,2]
[358201000,1744831839070,-1532.52,0.00024657,2]
[358201001,1744831839079,-500.0,0.00024657,2]
[358201002,1744831839089,-812.89,0.00024657,2]
[358201003,1744831839098,-500.0,0.00024657,2]
[358201004,1744831839109,-1941.48,0.00024657,2]
[358201005,1744831839118,-500.0,0.00024657,2]
[358201006,1744831839127,-500.0,0.00024657,2]
[358201007,1744831839136,-1342.49,0.00024657,2]
[358201008,1744831839146,-675.68,0.00024657,2]
[358201009,1744831839155,-1715.1,0.00024657,2]
[358201010,1744831839163,-500.0,0.00024657,2]
[358201011,1744831839173,-500.0,0.00024657,2]
[358201012,1744831839181,-500.0,0.00024657,2]
[358201013,1744831839190,-893.73,0.00024657,2]
[358201014,1744831839199,-500.0,0.00024657,2]
[358201015,1744831839207,-500.0,0.00024657,2]
[358201016,1744831839216,-835.72,0.00024657,2]
[358201017,1744831839225,-500.0,0.00024657,2]
[358201018,1744831839233,-3559.74,0.00024657,2]
[358201019,1744831839243,-3559.74,0.00024657,2]
[358201020,1744831839252,-1000.0,0.00024657,2]
[358201021,1744831839261,-500.0,0.00024657,2]
[358201022,1744831839271,-500.0,0.00024657,2]
[358201023,1744831839280,-925.92,0.00024657,2]
[358201024,1744831839289,-500.0,0.00024657,2]
[358201025,1744831839298,-500.0,0.00024657,2]
[358201026,1744831839307,-500.0,0.00024657,2]
[358201027,1744831839315,-787.12,0.00024657,2]
[358201028,1744831839325,-500.0,0.00024657,2]
[358201029,1744831839334,-3743.08621456,0.00024657,2]
[358201030,1744831839379,-1585.63378544,0.00024657,2]
[358201031,1744831839388,-638.97,0.00024657,2]
[358201032,1744831839398,-910.18164044,0.00024657,2]
[358201093,1744831843521,-260.18070285,0.00018234,2]
[358201094,1744831843531,-500.0,0.00018234,2]
[358201095,1744831843540,-257.92785511,0.00018234,2]
[358201096,1744831843550,-628.90698989,0.00018234,2]
[358201097,1744831843559,-500.0,0.00018234,2]
[358201098,1744831843569,-500.0,0.00018234,2]
[358201099,1744831843578,-1650.6052404,0.00018234,2]
[358201100,1744831843588,-190.40272788,0.00018234,2]
[358201101,1744831843597,-176.50603043,0.00018234,2]
[358201102,1744831843608,-484.03065397,0.00018234,2]
[358201103,1744831843618,-500.0,0.00018234,2]
[358201104,1744831843627,-1650.6052404,0.00018234,2]
[358201105,1744831843637,-1650.6052404,0.00018234,2]
[358201107,1744831843646,-500.0,0.00018234,2]
[358201109,1744831843655,-500.0,0.00018234,2]
[358201111,1744831843665,-412.08113554,0.00018234,2]
[358201113,1744831843674,-500.0,0.00018234,2]
[358201115,1744831843683,-1650.6052404,0.00018234,2]
[358201116,1744831843693,-500.0,0.00018234,2]
[358201118,1744831843702,-1650.6052404,0.00018234,2]
[358201120,1744831843711,-500.0,0.00018234,2]
[358201122,1744831843721,-1650.6052404,0.00018234,2]
[358201123,1744831843730,-500.0,0.00018234,2]
[358201124,1744831843739,-1650.6052404,0.00018234,2]
[358201125,1744831843749,-500.0,0.00018234,2]
[358201126,1744831843758,-1650.6052404,0.00018234,2]
[358201127,1744831843768,-294.91162077,0.00018234,2]
[358201128,1744831843777,-1650.6052404,0.00018234,2]
[358201129,1744831843786,-500.0,0.00018234,2]
[358201130,1744831843795,-1650.6052404,0.00018234,2]
[358201131,1744831843804,-500.0,0.00018234,2]
[358201132,1744831843813,-1650.6052404,0.00018234,2]
[358201133,1744831843822,-500.0,0.00018234,2]
[358201134,1744831843832,-1650.6052404,0.00018234,2]
[358201135,1744831843841,-1650.6052404,0.00018234,2]
[358201136,1744831843850,-500.0,0.00018234,2]
[358201137,1744831843861,-1650.6052404,0.00018234,2]
[358201138,1744831843871,-1650.6052404,0.00018234,2]
[358201139,1744831843880,-500.0,0.00018234,2]